bitfinex/quotes_ETHUSD_20250905
["timestamp","ask_amount","ask_price","bid_price","bid_amount"]
[1757069390849,0.11760002,4422.6,4422.5,3.60656449]
[1757069391283,0.11760002,4422.6,4422.5,1.3454]
[1757069391448,0.11760002,4422.6,4422.5,3.60656449]
[1757069391644,0.11760002,4422.6,4422.5,3.16626449]
[1757069391869,0.11760002,4422.6,4422.5,3.60656449]
[1757069393957,0.11760002,4422.6,4422.5,3.16626449]
[1757069394286,0.0012,4422.6,4422.5,3.60656449]
[1757069396084,0.0012,4422.6,4422.5,3.62917613]
[1757069396386,0.0012,4422.6,4422.5,3.60656449]
[1757069396588,0.0012,4422.6,4422.5,3.62917613]
[1757069397848,0.0012,4422.6,4422.5,3.60656449]
[1757069401179,0.0012,4422.6,4422.5,12.64230655]
[1757069401348,0.0012,4422.6,4422.5,12.61969491]
[1757069401949,0.0012,4422.6,4422.5,6.95826449]
[1757069402155,0.3123,4422.6,4422.5,6.15556449]
[1757069402378,0.3123,4422.6,4422.5,6.03316449]
[1757069402586,0.0012,4422.6,4422.5,6.03316449]
[1757069403083,0.0004,4422.6,4422.5,6.03316449]
[1757069404493,0.0004,4422.6,4422.5,6.50046449]
[1757069405966,0.782,4422.6,4422.5,3.772]
[1757069406959,0.782,4422.6,4422.3,0.001]
[1757069407161,0.4705,4422.5,4422.3,3.773]
[1757069407360,0.3111,4422.4,4422.3,3.773]
[1757069407584,0.0004,4422.6,4422.3,3.773]
[1757069407787,0.6801334,4422.6,4422.3,3.773]
[1757069408302,1.1506334,4422.6,4422.3,3.773]
[1757069408503,0.4705,4422.5,4422.3,3.773]
[1757069408796,0.7816,4422.4,4422.3,3.773]
[1757069409382,0.7816,4422.4,4422.3,0.001]
[1757069409383,1.2347,4422.4,4422.3,0.001]
[1757069409586,3.49591562,4422.4,4422.3,0.001]
[1757069410297,1e-08,4423.8,4422.3,5.98633042]
[1757069410467,0.17380389,4427.1,4424.7,2.26004022]
[1757069410791,1e-08,4424.8,4424.7,16.78577104]
[1757069411086,0.4531,4427.5,4425.7,3.05152956]
[1757069411262,0.4336,4427.0,4425.7,11.54252956]
[1757069411463,0.4531,4427.5,4425.7,12.51590347]
[1757069411674,0.4586,4426.8,4425.7,12.96900347]
[1757069411991,0.4336,4426.6,4425.7,12.96900347]
[1757069412188,0.4336,4426.6,4425.7,13.08180347]
[1757069413289,0.4336,4426.6,4425.7,15.13805756]
[1757069414599,0.4336,4426.6,4425.7,12.13805756]
[1757069414803,0.1128,4426.7,4425.7,12.13805756]
[1757069414969,0.4336,4426.6,4425.7,12.13805756]
[1757069415370,2.69268711,4426.6,4425.7,7.52105756]
[1757069415670,0.4336,4426.5,4425.7,9.28580347]
[1757069415997,0.5464,4426.5,4425.7,5.46480347]
[1757069416318,0.4336,4426.3,4425.7,8.52160347]
[1757069416694,0.4336,4426.3,4425.7,8.82460347]
[1757069416993,0.4336,4426.3,4425.7,9.28580347]
[1757069417210,0.4336,4426.3,4425.7,10.44034563]
[1757069417802,0.4336,4426.3,4425.7,7.87781607]
[1757069417969,0.32,4425.8,4425.7,7.41661607]
[1757069418172,0.32,4425.8,4425.7,9.67414563]
[1757069418370,0.32,4425.8,4425.7,3.59561607]
[1757069418684,0.32,4425.8,4425.7,5.69417391]
[1757069419002,0.7536,4425.8,4425.7,7.95370347]
[1757069419702,0.7536,4425.8,4425.7,5.69417391]
[1757069420711,0.7536,4425.8,4425.7,7.95370347]
[1757069420910,0.32,4425.8,4425.7,7.95370347]
[1757069421105,0.32,4425.8,4425.7,9.05423555]
[1757069421411,0.025,4425.8,4425.7,9.81843555]
[1757069422114,0.025,4425.8,4425.7,9.81543555]
[1757069422689,0.4336,4426.3,4426.0,2.25937286]
[1757069422884,0.4336,4426.6,4426.2,2.25927432]
[1757069423135,0.1128,4426.6,4426.3,4.02517391]
[1757069423287,0.1128,4426.6,4426.4,0.20917391]
[1757069423480,0.025,4426.8,4426.5,4.02417391]
[1757069423685,0.025,4426.8,4426.6,0.20917391]
[1757069423924,0.025,4426.8,4426.7,0.20917391]
[1757069424524,0.025,4426.8,4426.7,4.02417391]
[1757069425090,0.7536,4426.8,4426.7,4.02417391]
[1757069426626,0.7536,4426.8,4426.7,4.02282323]
[1757069427425,0.025,4426.8,4426.7,4.02282323]
[1757069427626,0.32,4426.8,4426.7,4.02282323]
[1757069427837,0.7536,4426.8,4426.7,4.02282323]
[1757069428199,0.025,4426.8,4426.7,4.02282323]
[1757069429129,0.32,4426.8,4426.7,4.02282323]
[1757069429549,0.025,4426.8,4426.7,4.02282323]
[1757069429729,0.025,4426.8,4426.7,5.18930555]
[1757069429934,0.025,4426.8,4426.7,7.44832468]
[1757069430241,0.025,4426.8,4426.7,4.72810929]
[1757069430570,0.32,4426.8,4426.7,4.02282697]
[1757069430905,0.3192,4426.8,4426.7,4.02282697]
[1757069431105,0.0242,4426.8,4426.7,7.0460461]
[1757069431305,0.0262,4426.8,4426.7,7.0460461]
[1757069431505,0.0262,4426.8,4426.7,7.98784279]
[1757069431729,0.0262,4426.8,4426.7,8.77984279]
[1757069431933,0.0262,4426.8,4426.7,8.89264279]
[1757069432128,0.0262,4426.8,4426.7,9.35694279]
[1757069432331,0.0262,4426.8,4426.7,8.89264279]
[1757069432724,0.0262,4426.8,4426.7,9.35694279]
[1757069433760,0.0262,4426.8,4426.7,8.89264279]
[1757069434065,0.0262,4426.8,4426.7,9.57155784]
[1757069434542,0.0262,4426.8,4426.7,10.03585784]
[1757069434749,0.0262,4426.8,4426.7,9.57155784]
[1757069435057,0.0262,4426.8,4426.7,9.45875784]
[1757069435340,0.002,4427.3,4427.2,2.258764]
[1757069435523,0.002,4427.3,4427.2,11.79387862]
[1757069435723,0.002,4427.3,4427.2,13.02237862]
[1757069436125,0.002,4427.3,4427.2,13.47547862]
[1757069436932,0.002,4427.3,4427.2,13.60029781]
[1757069437454,0.002,4427.3,4427.2,9.32599781]
[1757069437747,0.002,4427.3,4427.2,13.13699781]
[1757069438723,0.002,4427.3,4427.2,13.60129781]
[1757069439452,0.002,4427.3,4427.2,13.13699781]
[1757069439620,0.002,4427.3,4427.2,9.32599781]
[1757069439821,0.002,4427.3,4427.2,13.13599781]
[1757069440021,0.4424,4427.7,4427.6,2.25855994]
[1757069440251,0.4424,4427.7,4427.6,6.4012061]
[1757069440476,0.7375,4427.7,4427.6,7.31481973]
[1757069440747,0.7375,4427.7,4427.6,7.99363339]
[1757069441555,0.0242,4428.8,4427.6,12.43740123]
[1757069441735,2.7004436,4428.7,4427.8,2.25842946]
[1757069442055,2.7004436,4428.7,4427.9,4.14064616]
[1757069442056,0.4424,4428.6,4427.9,4.14064616]
[1757069442221,0.0242,4428.8,4428.0,0.33469115]
[1757069442424,0.9135,4428.7,4428.1,0.20918197]
[1757069442755,0.9135,4428.7,4428.2,4.01818197]
[1757069442756,2.25806821,4428.6,4428.2,4.01818197]
[1757069442927,0.9135,4428.5,4428.3,0.20918197]
[1757069443258,0.9135,4428.5,4428.4,0.20918197]
[1757069443461,2.72920093,4428.5,4428.4,0.20918197]
[1757069443624,3.02430093,4428.5,4428.4,0.20918197]
[1757069444035,3.46670093,4428.5,4428.4,0.20918197]
[1757069444455,3.46670093,4428.5,4428.4,0.20910557]
[1757069444645,1.2086,4428.5,4428.4,0.20910557]
[1757069445246,3.46670093,4428.5,4428.4,0.20910557]
[1757069448558,2.99560093,4428.5,4428.4,0.20910557]
[1757069448741,3.46670093,4428.5,4428.4,0.20910557]
[1757069450563,6.46670093,4428.5,4428.4,0.20910557]
[1757069451158,14.54922871,4428.5,4428.4,0.20910557]
[1757069451564,10.27570093,4428.5,4428.4,0.20910557]
[1757069452833,2.25865577,4427.5,4427.3,0.001]
[1757069453033,2.37145577,4427.5,4427.4,0.20945578]
[1757069453264,3.10895577,4427.5,4427.4,0.20945578]
[1757069453432,3.46725577,4427.5,4427.4,0.20945578]
[1757069453632,5.99615577,4427.5,4427.4,0.20945578]
[1757069453845,2.25866196,4427.4,4427.3,0.001]
[1757069454052,2.70106196,4427.4,4427.3,0.21058776]
[1757069454366,2.99616196,4427.4,4427.3,0.21058776]
[1757069456465,2.25866196,4427.4,4427.3,0.21058776]
[1757069456664,2.55376196,4427.4,4427.3,0.21058776]
[1757069456872,2.99616196,4427.4,4427.3,0.21058776]
[1757069458266,2.99616196,4427.4,4427.3,0.001]
[1757069458765,2.99536196,4427.4,4427.3,0.001]
[1757069459849,5.99536196,4427.4,4427.3,0.001]
[1757069460472,5.55296196,4427.4,4427.3,0.001]
[1757069460771,5.99536196,4427.4,4427.3,0.001]
[1757069461642,10.73998974,4427.4,4427.3,0.001]
[1757069462352,14.54398974,4427.4,4427.3,0.001]
[1757069462857,6.46646196,4427.4,4427.3,0.001]
[1757069463093,14.54398974,4427.4,4427.3,0.001]
[1757069464053,5.25871298,4427.3,4426.8,0.026]
[1757069464367,6.53244485,4426.9,4426.8,0.026]
[1757069464540,10.63154485,4426.9,4426.8,0.026]
[1757069464741,11.54504485,4426.9,4426.8,0.026]
[1757069465168,2.25942746,4425.9,4425.8,0.025]
[1757069465352,6.06342746,4425.9,4425.8,0.025]
[1757069465553,6.35852746,4425.9,4425.8,0.025]
[1757069465866,6.80092746,4425.9,4425.8,0.025]
[1757069466772,6.06242746,4425.9,4425.8,0.7898]
[1757069467156,6.06242746,4425.9,4425.8,0.025]
[1757069469573,2.25942746,4425.9,4425.8,0.025]
[1757069469743,3.03432746,4425.9,4425.8,0.025]
[1757069469945,6.03432746,4425.9,4425.8,0.025]
[1757069470138,6.50552746,4425.9,4425.8,0.025]
[1757069473880,6.03432746,4425.9,4425.8,0.025]
[1757069474260,6.50552746,4425.9,4425.8,0.025]
[1757069475567,2.25993807,4424.9,4424.8,0.026]
[1757069475778,9.06193807,4424.9,4424.8,0.026]
[1757069476171,9.83683807,4424.9,4424.8,0.026]
[1757069484476,5.10993807,4424.9,4424.8,0.3312]
[1757069484659,8.90793807,4424.9,4424.8,0.7887]
[1757069485267,5.10993807,4424.9,4424.8,0.7887]
[1757069485472,8.90793807,4424.9,4424.8,0.7887]
[1757069486088,8.90793807,4424.9,4424.8,0.4835]
[1757069486288,9.21453807,4424.9,4424.8,0.026]
[1757069486467,9.68283807,4424.9,4424.8,0.026]
[1757069486668,9.68203807,4424.9,4424.8,0.026]
[1757069487676,9.21373807,4424.9,4424.8,0.026]
[1757069489695,9.68203807,4424.9,4424.8,0.026]
[1757069490900,10.15323807,4424.9,4424.8,1e-08]
[1757069491467,15.36969938,4424.9,4424.8,1e-08]
[1757069492001,15.31969938,4424.9,4424.8,1e-08]
[1757069492410,15.48949994,4424.9,4424.8,1e-08]
[1757069494866,15.01829994,4424.9,4424.8,1e-08]
[1757069495476,5.83403807,4424.9,4424.8,1e-08]
[1757069495676,9.62803807,4424.9,4424.8,1e-08]
[1757069498277,5.83403807,4424.9,4424.8,1e-08]
[1757069498484,9.62703807,4424.9,4424.8,1e-08]
[1757069499083,9.14473807,4424.9,4424.8,1e-08]
[1757069499284,9.59373807,4424.9,4424.8,1e-08]
[1757069501509,10.06693807,4424.9,4424.8,1e-08]
[1757069501680,9.59373807,4424.9,4424.8,1e-08]
[1757069504209,9.59573807,4424.9,4424.8,1e-08]
[1757069505617,9.76475802,4424.9,4424.8,1e-08]
[1757069507194,9.76475802,4424.9,4424.8,0.78460001]
[1757069507195,5.06113807,4424.9,4424.8,0.78460001]
[1757069507394,8.85213807,4424.9,4424.8,0.78460001]
[1757069507709,5.06113807,4424.9,4424.8,0.78460001]
[1757069507916,8.85413807,4424.9,4424.8,1.24660001]
[1757069510212,5.06113807,4424.9,4424.8,0.78460001]
[1757069510512,8.85513807,4424.9,4424.8,1.24660001]
[1757069511288,5.06113807,4424.9,4424.8,1.24660001]
[1757069511488,8.85513807,4424.9,4424.8,1.24660001]
[1757069512111,8.85513807,4424.9,4424.8,0.78460001]
[1757069512513,9.14773807,4424.9,4424.8,1e-08]
[1757069512919,8.85513807,4424.9,4424.8,1e-08]
[1757069513219,8.85513807,4424.9,4424.8,0.47640001]
[1757069513425,8.85513807,4424.9,4424.8,0.78460001]
[1757069514123,3.796,4424.9,4424.8,1.24660001]
[1757069514921,0.0012,4424.9,4424.8,1.37126001]
[1757069518430,0.0012,4424.9,4424.8,0.78460001]
[1757069518724,0.114,4424.9,4424.8,0.78460001]
[1757069519125,0.114,4424.9,4424.8,1.24660001]
[1757069519709,0.114,4424.9,4424.8,0.78460001]
[1757069520329,0.114,4424.9,4424.8,1.24660001]
[1757069520539,0.114,4424.9,4424.8,1.5972729]
[1757069520737,0.0012,4424.9,4424.8,3.85726205]
[1757069520902,0.0012,4424.9,4424.8,3.97006205]
[1757069528008,0.0012,4424.9,4424.8,4.78466194]
[1757069528241,0.0012,4424.9,4424.8,4.76206205]
[1757069529110,0.0012,4424.9,4424.8,7.76206205]
[1757069535537,0.0012,4424.9,4424.8,11.55306205]
[1757069535712,0.0012,4424.9,4424.8,15.83306205]
[1757069536546,0.0012,4424.9,4424.8,15.37106205]
[1757069536738,0.0012,4424.9,4424.8,15.83436205]
[1757069539341,0.0012,4424.9,4424.8,11.58006205]
[1757069539531,0.0012,4424.9,4424.8,11.09006205]
[1757069539711,0.0012,4424.9,4424.8,7.30006205]
[1757069539916,0.0012,4424.9,4424.8,11.08906205]
[1757069542358,0.0004,4424.9,4424.8,11.08906205]
[1757069542658,0.0004,4424.9,4424.8,11.55236205]
[1757069543034,0.002,4425.4,4425.3,6.00846131]
[1757069543220,0.002,4425.4,4425.3,12.06330744]
[1757069543420,0.002,4425.4,4425.3,15.68024124]
[1757069544533,0.002,4425.9,4425.8,11.26793982]
[1757069544722,0.002,4425.9,4425.8,15.05693982]
[1757069544922,0.002,4425.9,4425.8,18.46098853]
[1757069545148,0.002,4425.9,4425.8,17.99768853]
[1757069545620,0.002,4425.9,4425.8,18.46098853]
[1757069546154,0.002,4425.9,4425.8,17.99768853]
[1757069548758,0.002,4425.9,4425.8,18.46098853]
[1757069550128,0.002,4425.9,4425.8,17.99768853]
[1757069550543,0.002,4425.9,4425.8,22.27768853]
[1757069550924,0.002,4425.9,4425.8,21.49658853]
[1757069551362,0.002,4425.9,4425.8,22.27768853]
[1757069553053,0.7777,4425.9,4425.8,16.27712722]
[1757069553452,0.7777,4425.9,4425.8,20.55430319]
[1757069554529,0.7777,4425.9,4425.8,20.66710319]
[1757069555255,0.3034,4425.9,4425.8,20.66710319]
[1757069555443,0.002,4425.9,4425.8,20.66710319]
[1757069555648,0.002,4425.9,4425.8,21.44820319]
[1757069556336,0.025,4426.8,4426.7,3.05101913]
[1757069556539,0.025,4426.8,4426.7,9.03202983]
[1757069556774,0.025,4426.8,4426.7,9.81312983]
[1757069557673,0.027,4426.8,4426.7,9.81312983]
[1757069559265,0.027,4426.8,4426.7,10.25592983]
[1757069559443,0.027,4426.8,4426.7,9.81312983]
[1757069560355,0.3252,4426.8,4426.7,9.03202983]
[1757069560556,0.027,4426.8,4426.7,9.03202983]
[1757069560757,0.027,4426.8,4426.7,9.33462983]
[1757069560958,0.027,4426.8,4426.7,9.82852983]
[1757069561760,0.3252,4426.8,4426.7,9.03202983]
[1757069561956,0.027,4426.8,4426.7,9.82852983]
[1757069562480,0.027,4426.8,4426.7,14.10852983]
[1757069563766,0.027,4426.8,4426.7,13.31202983]
[1757069565653,0.027,4426.8,4426.7,14.10852983]
[1757069565969,0.027,4426.8,4426.7,13.80592983]
[1757069566185,0.027,4426.8,4426.7,13.31202983]
[1757069566383,0.027,4426.8,4426.7,13.42482983]
[1757069570175,0.0262,4426.8,4426.7,13.42482983]
[1757069572306,0.0262,4426.8,4426.7,16.91872983]
[1757069572599,0.0262,4426.8,4426.7,17.22132983]
[1757069572804,0.0262,4426.8,4426.7,21.4985058]
[1757069573108,0.0262,4426.8,4426.7,17.22132983]
[1757069575893,0.0262,4426.8,4426.7,16.42482983]
[1757069577883,0.0262,4426.8,4426.7,17.22132983]
[1757069578997,0.002,4427.3,4427.2,3.050764]
[1757069579186,0.002,4427.3,4427.2,9.943564]
[1757069579384,0.002,4427.3,4427.2,10.740064]
[1757069581308,0.002,4427.3,4427.2,14.11243997]
[1757069581474,0.002,4427.3,4427.2,14.90443997]
[1757069581678,0.002,4427.3,4427.2,17.04876711]
[1757069583913,0.3002,4427.3,4427.2,7.40309114]
[1757069584209,0.3002,4427.3,4427.2,16.25126711]
[1757069584381,0.3002,4427.3,4427.2,15.45926711]
[1757069584578,0.002,4427.3,4427.2,15.76186711]
[1757069584777,0.002,4427.3,4427.2,17.04776711]
[1757069585222,0.025,4427.8,4427.7,3.05050893]
[1757069585403,0.025,4427.8,4427.7,20.35573579]
[1757069585584,0.025,4427.8,4427.7,21.15223579]
[1757069587916,0.025,4427.8,4427.7,20.35573579]
[1757069588721,0.025,4427.8,4427.7,21.15223579]
[1757069590301,0.025,4427.8,4427.7,20.84963579]
[1757069590829,0.025,4427.8,4427.7,21.16333579]
[1757069591434,0.025,4427.8,4427.7,21.27613579]
[1757069591634,0.3154,4427.8,4427.7,20.46853579]
[1757069591799,0.025,4427.8,4427.7,20.46853579]
[1757069592131,0.025,4427.8,4427.7,20.78223579]
[1757069593430,0.025,4427.8,4427.7,21.24143579]
[1757069594028,0.025,4427.8,4427.7,20.92773579]
[1757069594196,0.027,4427.8,4427.7,20.92773579]
[1757069595149,1e-08,4427.8,4427.7,21.24143579]
[1757069595448,1e-08,4427.8,4427.7,21.69793579]
[1757069596244,1e-08,4427.8,4427.7,21.24143579]
[1757069596402,1e-08,4427.8,4427.7,21.68053579]
[1757069596735,0.29040001,4427.8,4427.7,20.90663579]
[1757069596939,1e-08,4427.8,4427.7,20.78123579]
[1757069597238,1e-08,4427.8,4427.7,22.13603579]
[1757069598023,0.43830001,4428.7,4428.6,3.05004994]
[1757069598228,0.0242,4428.8,4428.7,2.25799896]
[1757069598739,0.7754,4428.8,4428.7,2.25799896]
[1757069599217,0.7754,4428.8,4428.7,6.53517493]
[1757069599814,0.3146,4428.8,4428.7,6.53517493]
[1757069600137,0.7537,4428.8,4428.7,6.53517493]
[1757069600544,1.2145,4428.8,4428.6,3.92204943]
[1757069600833,0.3146,4428.8,4428.7,6.03599896]
[1757069601212,0.7537,4428.8,4428.7,6.03599896]
[1757069601831,1.2145,4428.8,4428.7,6.03599896]
[1757069602039,0.7537,4428.8,4428.7,6.03599896]
[1757069602344,1.2145,4428.8,4428.7,6.03599896]
[1757069602747,0.7537,4428.8,4428.7,10.31317493]
[1757069605628,0.7537,4428.8,4428.7,10.29949978]
[1757069606259,0.0242,4428.8,4428.7,13.7145594]
[1757069607151,0.0242,4428.8,4428.7,13.4008594]
[1757069607356,0.0242,4428.8,4428.7,12.9416594]
[1757069607655,0.0242,4428.8,4428.7,9.43738343]
[1757069608016,0.0242,4428.8,4428.7,9.55018343]
[1757069610052,0.3146,4428.8,4428.7,9.29295858]
[1757069610254,0.7537,4428.8,4428.7,13.07095858]
[1757069611333,0.7537,4428.8,4428.7,17.34813455]
[1757069613141,0.3146,4428.8,4428.7,17.34813455]
[1757069613342,0.7537,4428.8,4428.7,10.42879896]
[1757069613529,0.7557,4428.8,4428.7,10.42879896]
[1757069614146,0.7557,4428.8,4428.7,0.1128]
[1757069614452,1.2165,4428.8,4428.7,3.8908]
[1757069614838,1.2165,4428.8,4428.7,0.1128]
[1757069615031,1.2165,4428.8,4428.7,3.778]
[1757069616047,1.2165,4428.8,4428.6,1.664]
[1757069616357,2.57454809,4428.8,4428.6,1.664]
[1757069616663,2.37079896,4428.7,4428.6,1.664]
[1757069616867,3.27069896,4428.7,4428.6,5.442]
[1757069617070,3.56109896,4428.7,4428.6,5.442]
[1757069617232,1.3031,4428.7,4428.6,5.442]
[1757069617435,1.3031,4428.7,4428.0,0.1128]
[1757069617655,3.15798733,4428.6,4428.1,3.778]
[1757069617859,0.2904,4428.2,4428.1,3.778]
[1757069618054,0.7295,4428.2,4428.1,3.778]
[1757069618279,1.1903,4428.2,4427.8,1.664]
[1757069618433,0.8999,4428.1,4427.9,3.778]
[1757069618753,3.44869442,4428.0,4427.6,0.001]
[1757069618958,1.1903,4428.0,4427.7,3.778]
[1757069619154,0.2904,4428.0,4427.7,3.778]
[1757069619362,0.937,4427.9,4427.7,3.778]
[1757069619527,1.2411,4427.8,4427.7,3.778]
[1757069621833,0.7744,4427.8,4427.7,3.778]
[1757069623159,0.7744,4427.8,4427.7,3.778]
[1757069624364,0.7744,4427.8,4427.6,0.001]
[1757069624365,1.2411,4427.8,4427.6,0.001]
[1757069624565,0.4667,4427.7,4427.6,0.001]
[1757069624947,1.2411,4427.7,4427.6,0.001]
[1757069625466,0.7744,4427.7,4427.6,0.001]
[1757069625799,1.2403,4427.7,4427.6,3.779]
[1757069626673,0.7736,4427.7,4427.6,3.779]
[1757069627879,0.3033,4427.7,4427.6,3.779]
[1757069628074,0.7736,4427.7,4427.6,3.779]
[1757069631345,0.3033,4427.7,4427.6,3.779]
[1757069631775,0.6992,4427.7,4427.6,3.779]
[1757069632997,0.6992,4427.7,4427.6,0.001]
[1757069633345,1.1659,4427.7,4427.6,0.001]
[1757069634000,3.42440893,4427.7,4427.6,0.001]
[1757069635165,2.95770893,4427.7,4427.6,0.001]
[1757069636596,3.42440893,4427.7,4427.6,0.001]
[1757069640189,2.95770893,4427.7,4427.6,0.001]
[1757069640390,0.2289,4427.7,4427.6,0.001]
[1757069640703,6.03946127,4427.8,4427.6,0.777]
[1757069640899,0.002,4427.8,4427.7,0.776]
[1757069641113,0.3061,4427.8,4427.6,0.001]
[1757069641318,2.25850893,4427.7,4427.6,0.001]
[1757069641618,2.72520893,4427.7,4427.6,0.001]
[1757069641933,3.49960893,4427.7,4427.6,0.001]
[1757069643712,3.03290893,4427.7,4427.6,0.001]
[1757069643916,3.49960893,4427.7,4427.6,0.001]
[1757069644116,7.27860893,4427.7,4427.6,0.001]
[1757069644921,10.27860893,4427.7,4427.6,0.001]
[1757069652855,6.49960893,4427.7,4427.6,0.001]
[1757069653017,10.27860893,4427.7,4427.6,0.001]
[1757069653642,10.27980893,4427.7,4427.6,0.001]
[1757069654041,6.50080893,4427.7,4427.6,0.001]
[1757069654246,10.27980893,4427.7,4427.6,0.001]
[1757069655453,11.07180893,4427.7,4427.6,0.001]
[1757069657058,11.07180893,4427.7,4426.1,0.4534]
[1757069657059,5.25917223,4426.4,4425.9,0.001]
[1757069657222,10.70317223,4426.4,4425.9,0.001]
[1757069657556,11.47057223,4426.4,4425.9,0.001]
[1757069658468,11.94177223,4426.4,4425.9,0.001]
[1757069659747,12.73377223,4426.4,4425.9,0.001]
[1757069659954,13.06287445,4426.4,4425.9,0.001]
[1757069660261,12.73377223,4426.4,4425.9,0.001]
[1757069662135,2.25942746,4425.9,4425.8,1e-08]
[1757069662340,9.04342746,4425.9,4425.8,1e-08]
[1757069662574,9.81082746,4425.9,4425.8,1e-08]
[1757069662873,6.02682746,4425.9,4425.8,1e-08]
[1757069663041,9.81082746,4425.9,4425.8,1e-08]
[1757069663849,6.02682746,4425.9,4425.8,1e-08]
[1757069664071,9.92431605,4425.9,4425.8,1e-08]
[1757069665557,9.15691605,4425.9,4425.8,0.29810001]
[1757069665751,5.25942746,4425.9,4425.8,0.75150001]
[1757069665946,9.04242746,4425.9,4425.8,1.19330001]
[1757069666142,6.04342746,4425.9,4425.8,1.19330001]
[1757069666485,3.785,4425.9,4425.8,1.19330001]
[1757069666685,9.04442746,4425.9,4425.8,1.19330001]
[1757069667542,9.04442746,4425.9,4425.8,0.75150001]
[1757069668147,9.04442746,4425.9,4425.8,0.29810001]
[1757069668685,9.04442746,4425.9,4425.8,0.75150001]
[1757069669176,5.25942746,4425.9,4425.8,1.19330001]
[1757069669380,9.04642746,4425.9,4425.8,1.19330001]
[1757069669709,5.25942746,4425.9,4425.8,1.19330001]
[1757069669850,9.04642746,4425.9,4425.8,1.19330001]
[1757069670264,5.25942746,4425.9,4425.8,1.19330001]
[1757069670464,9.04642746,4425.9,4425.8,1.19330001]
[1757069673167,9.04642746,4425.9,4425.8,0.75150001]
[1757069675492,9.04642746,4425.9,4425.8,0.29810001]
[1757069676004,9.34002746,4425.9,4425.8,1e-08]
[1757069677002,9.81382746,4425.9,4425.8,1e-08]
[1757069678102,5.55302746,4425.9,4425.8,1e-08]
[1757069678403,9.34402746,4425.9,4425.8,1e-08]
[1757069679605,9.81182746,4425.9,4425.8,1e-08]
[1757069680474,9.34402746,4425.9,4425.8,1e-08]
[1757069681478,9.34322746,4425.9,4425.8,1e-08]
[1757069682105,9.81102746,4425.9,4425.8,1e-08]
[1757069682411,9.81002746,4425.9,4425.8,1e-08]
[1757069682603,10.30962746,4425.9,4425.8,1e-08]
[1757069685381,9.81002746,4425.9,4425.8,1e-08]
[1757069686014,11.10162746,4425.9,4425.8,1e-08]
[1757069686210,14.09168184,4425.9,4425.8,1e-08]
[1757069690327,10.30068184,4425.9,4425.8,1e-08]
[1757069690527,5.55222746,4425.9,4425.8,1e-08]
[1757069690832,5.55222746,4425.9,4425.8,0.76410001]
[1757069690833,9.04862746,4425.9,4425.8,0.76410001]
[1757069691327,5.25862746,4425.9,4425.8,0.76410001]
[1757069691531,2.25862746,4425.9,4425.8,0.76410001]
[1757069691902,9.04862746,4425.9,4425.8,0.76410001]
[1757069692536,9.04962746,4425.9,4425.8,0.76410001]
[1757069694626,9.04962746,4425.9,4425.8,1e-08]
[1757069695025,9.04962746,4425.9,4425.8,0.76410001]
[1757069695205,9.04762746,4425.9,4425.8,0.76410001]
[1757069696424,5.25862746,4425.9,4425.8,0.76410001]
[1757069696615,9.04762746,4425.9,4425.8,0.76410001]
[1757069697342,9.04762746,4425.9,4425.8,1e-08]
[1757069697833,9.33322746,4425.9,4425.8,1e-08]
[1757069698023,9.80102746,4425.9,4425.8,1e-08]
[1757069698221,9.33322746,4425.9,4425.8,1e-08]
[1757069698836,9.80102746,4425.9,4425.8,1e-08]
[1757069699424,9.04762746,4425.9,4425.8,1e-08]
[1757069700906,9.04662746,4425.9,4425.8,0.76410001]
[1757069701112,9.04662746,4425.9,4425.8,0.30630001]
[1757069701349,9.04662746,4425.9,4425.8,1e-08]
[1757069701513,9.33222746,4425.9,4425.8,1e-08]
[1757069703346,9.04662746,4425.9,4425.8,1e-08]
[1757069704825,5.25862746,4425.9,4425.8,0.76410001]
[1757069705025,9.04462746,4425.9,4425.8,1.20200001]
[1757069705356,9.04462746,4425.9,4425.8,0.76410001]
[1757069706559,9.04462746,4425.9,4425.8,1.20200001]
[1757069706732,9.04462746,4425.9,4425.8,0.76410001]
[1757069706733,5.25862746,4425.9,4425.8,0.76410001]
[1757069707356,9.04462746,4425.9,4425.8,0.76410001]
[1757069707652,10.71162746,4425.9,4425.8,0.76410001]
[1757069709330,10.71082746,4425.9,4425.8,0.76410001]
[1757069710427,6.92482746,4425.9,4425.8,0.76410001]
[1757069710653,10.70882746,4425.9,4425.8,1.21900001]
[1757069710858,10.70882746,4425.9,4425.8,0.76410001]
[1757069712565,0.002,4425.9,4425.8,0.88600001]
[1757069712776,0.002,4425.9,4425.8,1.34090001]
[1757069713261,0.002,4425.9,4425.8,1.55160754]
[1757069713673,0.002,4425.9,4425.8,3.81108605]
[1757069714641,0.002,4425.9,4425.8,1.55160754]
[1757069715179,0.002,4425.9,4425.8,3.81108605]
[1757069716947,0.002,4425.9,4425.8,4.60308605]
[1757069720484,0.002,4425.9,4425.8,1.09670754]
[1757069720684,0.7625,4425.9,4425.8,0.21070754]
[1757069720987,3.02192746,4425.9,4425.8,0.21070754]
[1757069721186,0.002,4425.9,4425.8,0.50050754]
[1757069721388,0.002,4425.9,4425.8,0.78710001]
[1757069722253,0.002,4425.9,4425.8,1e-08]
[1757069722457,3.02192746,4425.9,4425.8,1e-08]
[1757069723086,3.02192746,4425.9,4425.8,0.21033669]
[1757069723282,6.80692746,4425.9,4425.8,0.21033669]
[1757069723486,3.02192746,4425.9,4425.8,0.21033669]
[1757069723683,6.80692746,4425.9,4425.8,0.21033669]
[1757069724095,6.80692746,4425.9,4425.8,1e-08]
[1757069724562,9.80692746,4425.9,4425.8,1e-08]
[1757069729364,6.02192746,4425.9,4425.8,1e-08]
[1757069729561,9.80492746,4425.9,4425.8,1e-08]
[1757069732168,9.35832746,4425.9,4425.8,1e-08]
[1757069734020,5.26142746,4425.9,4425.8,1e-08]
[1757069734223,9.04342746,4425.9,4425.8,1e-08]
[1757069734406,9.35732746,4425.9,4425.8,1e-08]